bitfinex-derivatives/quotes_SOLF0:USTF0_20240920
["timestamp","ask_amount","ask_price","bid_price","bid_amount"]
[1726799572452,3.5218,141.94,141.91,10.8]
[1726799573150,14.30088808,141.94,141.9,10.8]
[1726799573348,10.8,141.93,141.87,2.8184]
[1726799573547,10.8,141.93,141.89,10.8]
[1726799573749,14.23675505,141.93,141.89,10.8]
[1726799574149,3.5223,141.92,141.9,10.8]
[1726799575050,3.522,141.93,141.91,10.8]
[1726799577842,3.5218,141.94,141.91,10.8]
[1726799579954,6.99181022,141.94,141.91,10.8]
[1726799581145,6.99181022,141.94,141.91,14.3224]
[1726799581352,4.8599,141.95,141.91,10.8]
[1726799581658,10.8,141.97,141.93,10.8]
[1726799581954,1.3384,141.99,141.93,10.8]
[1726799582154,12.1384,141.99,141.95,10.8]
[1726799582651,3.5211,141.97,141.95,10.8]
[1726799585854,3.5211,141.97,141.94,10.8]
[1726799589454,10.8,141.95,141.87,2.8184]
[1726799589663,14.36557982,141.94,141.89,10.8]
[1726799589958,10.8,141.94,141.89,10.8]
[1726799590555,3.522,141.93,141.89,14.3228]
[1726799591561,3.522,141.93,141.9,10.8]
[1726799591755,3.522,141.93,141.9,14.3226]
[1726799591950,3.5218,141.94,141.9,14.3226]
[1726799592160,10.8,141.96,141.91,10.8]
[1726799592453,10.8,141.96,141.91,14.3223]
[1726799592659,3.5216,141.95,141.92,10.8]
[1726799593059,14.27681436,141.94,141.9,10.8]
[1726799593260,3.5221,141.93,141.9,10.8]
[1726799593761,3.5221,141.93,141.9,14.3227]
[1726799595359,3.5222,141.92,141.9,14.3227]
[1726799597966,3.5221,141.93,141.9,14.3227]
[1726799599667,3.5218,141.94,141.92,10.8]
[1726799600563,3.5218,141.94,141.91,10.8]
[1726799601368,3.5218,141.94,141.91,14.3223]
[1726799603971,10.8,141.96,141.93,10.8]
[1726799603972,3.5214,141.96,141.93,10.8]
[1726799604166,3.5214,141.96,141.94,10.8]
[1726799604373,3.5214,141.96,141.93,10.8]
[1726799605167,3.5214,141.96,141.93,14.3219]
[1726799605367,3.5215,141.95,141.93,10.8]
[1726799605568,3.5215,141.95,141.87,2.8184]
[1726799605569,3.5215,141.95,141.91,10.8]
[1726799605767,3.5215,141.95,141.91,14.3223]
[1726799606476,3.5217,141.94,141.91,14.3223]
[1726799607674,3.522,141.93,141.91,14.3223]
[1726799607877,3.522,141.93,141.91,3.5223]
[1726799608978,3.5222,141.92,141.87,2.8184]
[1726799609277,3.5222,141.92,141.9,10.8]
[1726799609582,3.5222,141.92,141.89,10.8]
[1726799610271,3.5224,141.91,141.89,14.3227]
[1726799610469,10.8,141.91,141.87,1.4415]
[1726799610670,10.8,141.9,141.87,1.4415]
[1726799610875,10.8,141.9,141.87,12.2415]
[1726799611068,10.8,141.9,141.87,15.7648]
[1726799611376,10.8,141.9,141.87,4.9648]
[1726799611770,10.8,141.9,141.88,3.5232]
[1726799611972,14.40897056,141.92,141.88,3.5232]
[1726799612776,3.5226,141.91,141.88,3.5232]
[1726799613771,10.8,141.92,141.9,3.5225]
[1726799613978,15.68798206,141.93,141.89,10.8]
[1726799614280,12.2068,141.93,141.89,10.8]
[1726799614678,19.3345107,141.93,141.89,14.3228]
[1726799615173,15.7289,141.93,141.89,14.3228]
[1726799615777,19.17483315,141.93,141.89,14.3228]
[1726799615977,1.4068,141.93,141.9,3.5226]
[1726799616275,10.8,141.95,141.91,10.8]
[1726799616482,10.8,141.95,141.91,14.3223]
[1726799617873,3.5217,141.94,141.91,14.3223]
[1726799620083,14.3217,141.94,141.91,14.3223]
[1726799620278,3.5221,141.93,141.91,10.8]
[1726799620479,3.5221,141.93,141.89,10.8]
[1726799621180,3.5221,141.93,141.89,14.3228]
[1726799621586,3.5222,141.92,141.89,14.3228]
[1726799622485,3.522,141.93,141.89,10.8]
[1726799622683,3.522,141.93,141.9,10.8]
[1726799622885,3.5218,141.94,141.91,3.5224]
[1726799623086,12.2712,141.97,141.92,10.8]
[1726799623489,3.5213,141.96,141.93,14.3218]
[1726799630285,3.5215,141.95,141.9,10.8]
[1726799630491,10.8,141.96,141.9,10.8]
[1726799631189,3.5219,141.94,141.91,3.5223]
[1726799631694,10.8,141.93,141.89,10.8]
[1726799631895,14.322,141.93,141.9,14.3225]
[1726799633994,3.5219,141.94,141.91,14.3224]
[1726799637294,3.5221,141.93,141.9,14.3226]
[1726799637595,14.31533563,141.94,141.89,10.8]
[1726799637794,10.8,141.93,141.88,14.323]
[1726799638000,10.8,141.91,141.88,3.523]
[1726799638502,14.3225,141.91,141.88,3.523]
[1726799638690,14.3225,141.91,141.89,3.5229]
[1726799638891,10.8,141.93,141.89,10.8]
[1726799639095,3.5224,141.92,141.89,10.8]
[1726799639698,3.5225,141.91,141.89,3.5228]
[1726799640001,14.3225,141.91,141.88,10.8]
[1726799640401,14.3225,141.91,141.88,14.3231]
[1726799640801,3.5231,141.89,141.87,1.4415]
[1726799641003,14.3231,141.89,141.86,3.5236]
[1726799641202,10.8,141.89,141.85,10.8]
[1726799641802,14.323,141.89,141.86,3.5236]
[1726799643306,10.8,141.92,141.87,10.8]
[1726799643906,3.5226,141.91,141.88,3.523]
[1726799645309,3.5227,141.9,141.87,14.3234]
[1726799645507,3.5227,141.9,141.87,3.5234]
[1726799645900,14.3227,141.9,141.87,3.5234]
[1726799647703,3.5225,141.91,141.87,10.8]
[1726799648004,1.363,141.92,141.88,10.8]
[1726799648210,1.363,141.92,141.89,10.8]
[1726799648410,1.363,141.92,141.9,3.5225]
[1726799649905,3.522,141.93,141.9,3.5225]
[1726799650309,10.8,141.94,141.9,10.8]
[1726799650310,3.5217,141.94,141.9,10.8]
[1726799650905,14.3215,141.95,141.91,3.5223]
[1726799651105,3.5215,141.95,141.91,3.5223]
[1726799652105,10.8,141.94,141.9,14.3226]
[1726799653113,14.3218,141.94,141.9,14.3226]
[1726799653710,1.3671,141.98,141.89,14.3228]
[1726799653711,14.3221,141.93,141.89,14.3228]
[1726799654014,10.8,141.93,141.89,14.3228]
[1726799654512,3.5222,141.92,141.89,14.3228]
[1726799655812,3.5222,141.92,141.9,3.5227]
[1726799656514,14.322,141.93,141.9,14.3227]
[1726799656916,3.5218,141.94,141.91,14.3224]
[1726799658714,3.5221,141.93,141.9,3.5225]
[1726799660317,3.5221,141.93,141.91,14.3224]
[1726799661413,3.5221,141.93,141.91,10.8]
[1726799662212,3.5221,141.93,141.91,14.3224]
[1726799662412,10.8,141.95,141.91,10.8]
[1726799662413,3.5218,141.94,141.91,10.8]
[1726799663907,3.5218,141.94,141.92,3.5222]
[1726799664105,14.3215,141.95,141.92,3.5222]
[1726799664915,3.5218,141.94,141.92,3.5222]
[1726799668223,3.5215,141.95,141.92,14.3222]
[1726799668621,3.5215,141.95,141.93,3.5219]
[1726799668809,3.5215,141.95,141.92,10.8]
[1726799669416,3.5215,141.95,141.92,14.322]
[1726799669912,10.8,141.95,141.9,10.8]
[1726799670116,1.3671,141.98,141.9,10.8]
[1726799670117,10.8,141.94,141.9,3.5226]
[1726799670622,3.5221,141.93,141.9,3.5226]
[1726799672121,3.5221,141.93,141.91,3.5224]
[1726799672517,1.3671,141.98,141.91,10.8]
[1726799672715,10.8,141.96,141.92,3.5221]
[1726799673811,3.5216,141.95,141.92,3.5221]
[1726799676926,10.8,141.95,141.91,3.5223]
[1726799677421,3.5219,141.94,141.91,3.5223]
[1726799677824,10.8,141.95,141.91,3.5223]
[1726799678226,3.5217,141.94,141.91,3.5223]
[1726799681921,3.5216,141.95,141.91,10.8]
[1726799682529,3.5216,141.95,141.92,3.522]
[1726799683122,3.5218,141.94,141.92,3.522]
[1726799683331,3.5218,141.94,141.89,10.8]
[1726799683332,10.8,141.94,141.89,10.8]
[1726799684231,3.5221,141.93,141.9,3.5225]
[1726799684633,10.8,141.91,141.84,1.3319]
[1726799684826,10.8,141.9,141.88,3.523]
[1726799685021,10.8,141.89,141.84,1.3319]
[1726799685231,1.3528,141.93,141.83,1.3337]
[1726799685232,10.8,141.87,141.83,1.3337]
[1726799685430,14.3235,141.87,141.83,12.1337]
[1726799685735,10.8,141.87,141.83,12.1337]
[1726799686034,10.8,141.87,141.84,3.524]
[1726799686932,10.8,141.87,141.83,12.1337]
[1726799687927,10.8,141.87,141.85,3.5239]
[1726799688131,10.8,141.87,141.83,1.3337]
[1726799688132,1.3586,141.92,141.84,10.8]
[1726799688331,10.8,141.89,141.86,3.5236]
[1726799688731,10.8,141.89,141.84,10.8]
[1726799688732,14.3232,141.89,141.84,10.8]
[1726799689130,14.3232,141.89,141.85,3.5238]
[1726799693830,14.3232,141.88,141.85,3.5238]
[1726799695733,10.8,141.88,141.83,12.1337]
[1726799696325,10.8,141.88,141.85,3.5237]
[1726799697539,14.3232,141.88,141.85,3.5237]
[1726799698239,3.5232,141.88,141.85,3.5237]
[1726799698440,14.3232,141.88,141.85,3.5237]
[1726799698640,1.3586,141.92,141.86,10.8]
[1726799698839,10.8,141.91,141.87,10.8]
[1726799699341,17.78114739,141.91,141.87,14.3232]
[1726799700450,3.5227,141.9,141.87,14.3232]
[1726799701145,3.523,141.89,141.86,3.5236]
[1726799701447,3.523,141.89,141.83,1.3337]
[1726799701448,10.8,141.89,141.84,10.8]
[1726799701843,3.5233,141.88,141.85,3.5238]
[1726799702048,10.8,141.88,141.84,10.8]
[1726799702250,10.8,141.87,141.83,1.3337]
[1726799702453,3.5236,141.87,141.84,14.324]
[1726799702847,3.5236,141.87,141.84,10.8]
[1726799703043,3.5236,141.87,141.83,12.1337]
[1726799703348,3.5236,141.87,141.84,3.524]
[1726799703953,10.8,141.88,141.84,10.8]
[1726799704160,10.8,141.9,141.85,10.8]
[1726799704853,3.5231,141.89,141.86,3.5235]
[1726799705853,14.3227,141.9,141.87,3.5233]
[1726799706052,4.95781614,141.92,141.86,10.8]
[1726799706348,10.8,141.91,141.86,10.8]
[1726799707051,10.8,141.88,141.69,7.36119753]
[1726799707355,10.8,141.83,141.77,10.8]
[1726799708757,3.5248,141.82,141.78,3.5256]
[1726799709154,1.3629,141.86,141.79,10.8]
[1726799709358,14.3244,141.84,141.8,14.3252]
[1726799711651,14.3244,141.84,141.81,3.5249]
[1726799711856,1.4595,141.87,141.83,10.8]
[1726799712360,4.983,141.87,141.84,3.524]
[1726799713062,4.983,141.87,141.85,10.8]
[1726799713254,3.50398843,141.9,141.85,14.3239]
[1726799713452,14.30398843,141.9,141.85,14.3239]
[1726799713651,10.8,141.9,141.85,14.3239]
[1726799713857,3.5231,141.89,141.85,14.3239]
[1726799714254,1.3565,141.91,141.88,10.8]
[1726799714451,14.33364123,141.94,141.89,10.8]
[1726799714654,10.8,141.94,141.89,10.8]
[1726799714852,3.5221,141.93,141.89,14.3228]
[1726799718264,3.5217,141.94,141.9,14.3226]
[1726799721262,3.5221,141.93,141.9,10.8]
[1726799721459,10.8,141.94,141.89,14.3227]
[1726799722863,3.5222,141.92,141.89,14.3227]
[1726799725661,1.3732,141.95,141.91,10.8]
[1726799725968,1.3732,141.95,141.93,10.8]
[1726799726167,4.8948,141.95,141.93,10.8]
[1726799730767,1.3732,141.95,141.92,10.8]
[1726799730961,1.3732,141.95,141.9,10.8]
[1726799731159,12.1732,141.95,141.9,10.8]
[1726799731364,3.5222,141.92,141.9,10.8]
[1726799731869,12.1732,141.95,141.9,10.8]
[1726799732773,3.5221,141.93,141.9,14.3227]
[1726799732974,1.3732,141.95,141.92,10.8]
[1726799734272,3.5218,141.94,141.92,10.8]
[1726799735172,4.8948,141.95,141.93,10.8]
[1726799735373,4.95667349,141.97,141.94,10.8]
[1726799735374,3.53627349,141.97,141.94,10.8]
[1726799736069,3.5214,141.96,141.94,10.8]
[1726799736563,3.53627349,141.97,141.94,10.8]
[1726799736775,3.5214,141.95,141.93,10.8]
[1726799740377,3.5214,141.95,141.92,14.3221]
[1726799742174,2.8224,142.0,141.94,10.8]
[1726799742378,13.6224,142.0,141.96,10.8]
[1726799742578,3.5551577,141.99,141.96,10.8]
[1726799742987,3.521,141.97,141.95,10.8]
[1726799752983,3.5212,141.96,141.87,2.7827]
[1726799753190,10.8,141.97,141.92,10.8]
[1726799753882,14.28242172,141.97,141.92,10.8]
[1726799755778,3.5216,141.95,141.92,10.8]
[1726799759392,3.5216,141.95,141.92,14.3222]
[1726799761585,3.5216,141.95,141.93,10.8]
[1726799761786,3.5216,141.95,141.93,14.3219]
[1726799762292,3.48242172,141.97,141.93,14.3219]
[1726799762293,3.5213,141.96,141.93,14.3219]
[1726799763194,3.5211,141.97,141.94,14.3216]
[1726799764095,3.5211,141.97,141.95,3.5214]
[1726799764289,2.8224,142.0,141.96,10.8]
[1726799764495,4.92190814,142.0,141.96,10.8]
[1726799764794,3.5204,141.99,141.97,10.8]
[1726799765395,3.5207,141.98,141.97,10.8]
[1726799766789,4.92190814,142.0,141.97,10.8]
[1726799766993,1.3514,142.0,141.99,10.8]
[1726799767188,10.8,142.03,141.99,10.8]
[1726799767389,2.8167,142.04,141.99,10.8]
[1726799767592,10.8,142.03,141.99,10.8]
[1726799767794,3.5198,142.02,141.99,10.8]
[1726799767993,3.5198,142.02,142.0,10.8]
[1726799768192,1.4197,142.04,142.0,10.8]
[1726799768893,3.5196,142.03,142.0,10.8]
[1726799769098,1.4197,142.04,142.0,10.8]
[1726799769790,3.5197,142.02,142.0,10.8]
[1726799770395,3.5197,142.02,141.99,10.8]
[1726799774501,3.5201,142.01,141.97,3.5208]
[1726799774808,10.8,142.02,141.97,10.8]
[1726799775304,3.5202,142.0,141.97,10.8]
[1726799775807,3.52,142.01,141.97,14.3208]
[1726799776511,3.5203,142.0,141.97,14.3208]
[1726799776906,10.8,142.02,141.98,10.8]
[1726799777307,3.5201,142.01,141.98,10.8]
[1726799778310,3.5197,142.02,141.99,10.8]
[1726799779212,3.52,142.01,141.99,10.8]
[1726799779812,3.5198,142.02,141.99,10.8]
[1726799781210,3.52,142.01,141.99,10.8]
[1726799781614,10.8,142.0,141.95,10.8]
[1726799781810,10.8,141.99,141.94,13.6005]
[1726799782107,3.46897942,141.98,141.94,13.6005]
[1726799782313,3.5211,141.97,141.94,13.6005]
[1726799782809,3.5211,141.97,141.94,2.8005]
[1726799783010,3.5211,141.97,141.95,10.8]
[1726799789923,3.5208,141.98,141.95,14.3214]
[1726799790215,3.5208,141.98,141.95,10.8]
[1726799791119,3.521,141.97,141.95,10.8]
[1726799791523,3.521,141.97,141.94,15.7699]
[1726799793624,3.5212,141.96,141.94,12.2483]
[1726799796322,10.8,142.01,141.95,10.8]
[1726799796523,10.8,142.01,141.94,1.4483]
[1726799796524,10.8,142.01,141.97,10.8]
[1726799796718,23.72646824,142.02,141.98,10.8]
[1726799796925,3.52,142.01,141.98,10.8]
[1726799797223,3.52,142.01,141.99,10.8]
[1726799798126,3.5202,142.0,141.98,10.8]
[1726799799025,3.5205,141.99,141.96,10.8]
[1726799799227,14.3086696,142.0,141.95,12.2434]
[1726799799428,10.8,142.0,141.95,10.8]
[1726799799726,3.5209,141.98,141.95,10.8]
[1726799800622,3.5209,141.98,141.95,14.3214]
[1726799810139,14.34147018,142.0,141.95,14.3214]
[1726799810936,3.5209,141.98,141.95,14.3214]
[1726799817445,10.8,141.99,141.95,14.3214]
[1726799817649,10.8,141.99,141.95,10.8]
[1726799818348,3.5211,141.97,141.95,10.8]
[1726799818550,3.5211,141.97,141.94,15.7699]
[1726799818848,10.8,141.98,141.88,1.3998]
[1726799819047,10.8,141.96,141.89,1.4066]
[1726799819356,3.5216,141.95,141.92,14.3221]
[1726799820254,3.5213,141.96,141.93,10.8]
[1726799820454,1.4404,141.98,141.94,10.8]
[1726799820851,3.5211,141.97,141.94,14.3216]
[1726799821648,3.5205,141.99,141.96,14.321]
[1726799822156,3.5207,141.98,141.96,10.8]
[1726799822355,3.5207,141.98,141.95,14.3213]
[1726799828161,10.8,141.98,141.93,3.5219]
[1726799828359,10.8,141.98,141.93,14.3219]
[1726799828860,3.5213,141.96,141.93,14.3219]
[1726799829058,10.8,141.97,141.93,10.8]
[1726799829254,10.8,141.97,141.92,3.5221]
[1726799829559,10.8,141.96,141.9,3.5225]
[1726799829760,10.8,141.94,141.9,14.3225]
[1726799829957,10.8,141.94,141.9,10.8]
[1726799830158,10.8,141.93,141.89,14.3228]
[1726799830760,3.5222,141.92,141.89,14.3228]
[1726799831257,3.5222,141.92,141.87,3.5232]
[1726799831258,3.5228,141.9,141.87,3.5232]
[1726799831465,3.5228,141.9,141.87,14.3232]
[1726799832559,3.5228,141.9,141.87,10.8]
[1726799833368,3.523,141.89,141.87,10.8]
[1726799833660,3.523,141.89,141.85,140.92]
[1726799833661,10.8,141.89,141.85,14.3239]
[1726799834759,3.5233,141.88,141.85,10.8]
[1726799835064,10.8,141.86,141.81,10.8]
[1726799835252,3.5241,141.85,141.81,14.3248]
[1726799835757,10.8,141.86,141.82,14.3246]
[1726799835957,1.4337,141.87,141.84,10.8]
[1726799836361,4.9573,141.87,141.84,10.8]
[1726799836765,15.7573,141.87,141.83,14.3243]
[1726799837657,3.5237,141.86,141.83,10.8]
[1726799837859,1.4337,141.87,141.84,10.8]
[1726799838256,4.9572,141.87,141.84,10.8]
[1726799838458,1.4337,141.87,141.84,10.8]
[1726799838861,1.4337,141.87,141.84,14.3241]
[1726799839763,1.4337,141.87,141.84,14.29103552]
[1726799840062,4.9571,141.87,141.84,14.29103552]
[1726799840766,4.9571,141.87,141.84,10.76693552]
[1726799842456,3.5237,141.86,141.84,10.76693552]
[1726799843667,4.9572,141.87,141.84,10.76693552]
[1726799846465,3.5238,141.86,141.84,10.76693552]
[1726799847066,3.5239,141.85,141.82,10.8]
[1726799847568,12.2337,141.87,141.82,10.8]
[1726799847762,3.524,141.85,141.81,14.3248]
[1726799849462,3.5242,141.84,141.81,14.3248]
[1726799849767,12.2337,141.87,141.83,10.8]
[1726799849967,3.5239,141.86,141.84,10.8]
[1726799850768,3.5239,141.86,141.83,14.3244]
[1726799860781,1.4337,141.87,141.85,10.8]
[1726799860984,1.4337,141.87,141.84,14.324]
[1726799861682,4.9573,141.87,141.84,14.324]
[1726799867284,1.3904,141.91,141.85,3.5238]
[1726799867588,10.8,141.89,141.85,14.3238]
[1726799867880,14.3231,141.89,141.86,3.5235]
[1726799868186,10.8,141.9,141.86,10.8]
[1726799868386,14.35857431,141.9,141.86,10.8]
[1726799868588,17.88147431,141.9,141.86,14.3236]
[1726799870780,3.523,141.89,141.86,14.3236]
[1726799871177,3.5223,141.92,141.87,10.8]
[1726799871377,17.81187208,141.92,141.87,10.8]
[1726799871581,14.28957208,141.92,141.87,10.8]
[1726799872282,14.28957208,141.92,141.88,3.523]
[1726799872283,3.5225,141.91,141.88,3.523]
[1726799874183,1.4365,141.95,141.89,3.5229]
[1726799874381,1.4365,141.95,141.89,10.8]
[1726799874687,10.8,141.94,141.89,10.8]
[1726799875783,10.8,141.94,141.8,141.02]
[1726799875784,12.2365,141.95,141.9,10.8]
[1726799876289,15.7581,141.95,141.91,3.5222]
[1726799876690,10.8,141.95,141.92,10.8]
[1726799876889,14.3213,141.96,141.92,14.322]
[1726799878389,14.3214,141.95,141.92,3.522]
[1726799878690,10.8,141.93,141.9,10.8]
[1726799879080,10.8,141.93,141.9,14.3225]
[1726799879987,10.8,141.93,141.9,3.5225]
[1726799880189,14.322,141.93,141.9,3.5225]
[1726799880693,10.8,141.93,141.9,10.8]
[1726799880892,10.8,141.95,141.9,10.8]
[1726799881995,3.5219,141.94,141.91,3.5224]
[1726799884691,1.4356,141.99,141.9,10.8]
[1726799884692,3.522,141.93,141.9,3.5226]
[1726799884997,1.4356,141.99,141.88,2.8616]
[1726799884998,10.8,141.92,141.88,13.6616]
[1726799885190,14.3226,141.91,141.88,6.3846]
[1726799885392,10.8,141.9,141.86,10.8]
[1726799885590,10.8,141.9,141.85,10.8]
[1726799885791,10.8,141.89,141.86,3.5235]
[1726799886594,14.3231,141.89,141.86,3.5235]
[1726799887097,14.3231,141.89,141.87,3.5234]
[1726799887290,3.5231,141.89,141.87,3.5234]
[1726799889399,14.3231,141.89,141.86,3.5236]
[1726799889599,3.5232,141.88,141.85,10.8]
[1726799890102,3.5232,141.88,141.85,14.3237]
[1726799890595,14.323,141.89,141.85,10.8]
[1726799890800,10.8,141.9,141.86,10.8]
[1726799891904,14.3228,141.9,141.87,3.5233]
[1726799893307,14.3228,141.9,141.88,3.5231]
[1726799893500,14.3225,141.91,141.88,3.5231]
[1726799893694,10.8,141.91,141.87,10.8]
[1726799894095,10.8,141.91,141.86,10.8]
[1726799894299,10.8,141.9,141.86,10.8]
[1726799894600,1.39,141.98,141.87,3.5232]
[1726799894806,10.8,141.91,141.87,3.5232]
[1726799895204,3.5227,141.9,141.87,3.5232]
[1726799895399,3.5227,141.9,141.86,10.8]
[1726799895400,3.5227,141.9,141.86,14.3236]
[1726799895600,14.3227,141.9,141.86,3.5236]
[1726799895800,3.523,141.89,141.86,3.5236]
[1726799900806,12.1688,141.91,141.86,10.8]
[1726799901508,15.6915,141.91,141.88,3.523]
[1726799903404,3.61115266,141.92,141.9,10.8]
[1726799903609,1.3994,141.97,141.91,10.8]
[1726799903799,10.8,141.96,141.91,10.8]
[1726799904003,3.5216,141.95,141.91,10.8]
[1726799904200,10.8,141.93,141.89,10.8]
[1726799904399,10.8,141.92,141.88,13.6969]
[1726799904704,10.8,141.91,141.88,1.4508]
[1726799904909,10.8,141.91,141.87,10.8]
[1726799905309,14.3226,141.91,141.87,10.8]
[1726799905709,14.3226,141.91,141.88,3.523]
[1726799906408,14.3226,141.91,141.87,10.8]
[1726799906409,3.5227,141.9,141.87,14.3233]
[1726799907212,3.5225,141.91,141.88,3.5231]
[1726799907813,14.3223,141.92,141.89,3.5229]
[1726799908619,14.322,141.93,141.88,10.8]
[1726799909414,3.5222,141.92,141.89,3.5228]
[1726799909619,10.8,141.91,141.88,10.8]
[1726799910016,10.8,141.91,141.89,3.5229]
[1726799911722,1.3314,141.96,141.9,10.8]
[1726799911923,10.8,141.94,141.9,10.8]
[1726799912617,14.3218,141.94,141.91,3.5223]
[1726799914818,12.1314,141.96,141.92,10.8]
[1726799915325,15.6528,141.96,141.93,3.5219]
[1726799915820,3.5216,141.95,141.91,10.8]
[1726799916025,14.3216,141.95,141.9,10.8]
[1726799916421,3.5217,141.94,141.91,3.5223]
[1726799917729,4.9205,141.97,141.94,3.5215]
[1726799918023,10.8,141.96,141.9,10.8]
[1726799918229,10.8,141.96,141.91,10.8]
[1726799918728,14.3213,141.96,141.92,3.5221]
[1726799919526,14.3213,141.96,141.91,10.8]
[1726799919731,1.3994,141.97,141.95,10.8]
[1726799919934,1.469,141.99,141.96,10.8]
[1726799920129,10.8,142.0,141.96,10.8]
[1726799920130,14.35621163,142.0,141.96,10.8]
[1726799920629,14.3203,142.0,141.96,14.321]
[1726799920824,10.8,142.0,141.96,14.321]
[1726799921823,2.8229,142.03,141.97,3.5208]
[1726799922033,10.8,142.02,141.98,10.8]
[1726799922331,14.3198,142.02,141.98,10.8]
[1726799922633,14.3198,142.02,141.98,14.3205]
[1726799922828,14.3198,142.02,141.98,3.5205]
[1726799923032,10.8,142.01,141.98,3.5205]
[1726799923436,14.32,142.01,141.98,3.5205]
[1726799923734,14.32,142.01,141.97,3.5209]
[1726799925729,14.32,142.01,141.89,140.96]
[1726799925730,1.3539,142.03,141.99,10.8]
[1726799925934,10.8,142.04,142.0,10.8]
[1726799926239,10.8,142.04,142.0,14.3201]
[1726799926430,10.8,142.04,142.0,3.5201]
[1726799926631,14.3195,142.04,142.0,3.5201]
[1726799929731,14.3195,142.04,142.01,3.5199]
[1726799929938,14.3191,142.05,142.01,3.5199]
[1726799930633,10.8,142.05,142.02,3.5196]
[1726799931838,14.319,142.05,142.02,3.5196]
[1726799933131,10.8,142.04,142.01,3.5198]
[1726799933340,14.3193,142.04,142.01,3.5198]
[1726799933733,3.5196,142.03,142.0,3.5201]
[1726799937339,3.5196,142.03,142.01,3.5199]
[1726799941548,2.8789,142.08,142.02,10.8]
[1726799941754,13.6789,142.08,142.04,10.8]
[1726799942046,3.5187,142.07,142.04,10.8]
[1726799942246,13.6789,142.08,142.04,10.8]
[1726799942451,13.6789,142.08,142.03,3.5193]
[1726799942645,3.5189,142.06,142.03,3.5193]
[1726799943855,3.5189,142.06,142.02,3.5196]
[1726799944057,3.519,142.05,142.02,3.5196]
[1726799944257,14.319,142.05,142.02,3.5196]
[1726799950161,3.5193,142.04,142.02,3.5196]
[1726799950862,14.3191,142.05,142.02,3.5196]
[1726799951260,3.5191,142.05,142.02,3.5196]
[1726799954657,3.5186,142.07,142.04,3.5191]
[1726799955966,3.5186,142.07,142.03,14.3193]
[1726799956167,12.2762,142.08,142.03,3.5193]
[1726799956364,10.8,142.07,142.03,3.5193]
[1726799957068,10.8,142.06,142.02,3.5196]
[1726799957366,3.5192,142.04,142.0,10.8]
[1726799957566,3.5192,142.04,142.01,3.5198]
[1726799962767,10.8,142.06,142.02,10.8]
[1726799963168,3.5188,142.06,142.04,3.5192]
[1726799963371,10.8,142.07,142.04,3.5192]
[1726799963675,13.6317,142.08,142.04,3.5192]